[Event "Titled Tuesday Blitz June 13 Early 2023"]
[White "Sadykov, Ramil"]
[Black "Sarana, Alexey"]
[WhiteFideId "24113590"]
[BlackFideId "24133795"]
[WhiteElo "2245"]
[BlackElo "2714"]
[Result "0-1"]
[Round "2"]
[TimeControl "180+2"]
[Date "2023.06.13"]
[WhiteClock "0:00:05"]
[BlackClock "0:00:34"]
[Board "9"]

1. e4 {[%clk 0:02:52]}  c5 {[%clk 0:02:58]} 2. Nf3 {[%clk 0:02:52]}  d6 {[%clk 0:02:58]} 3. Bb5+ {[%clk 0:02:51]}  Bd7 {[%clk 0:02:57]} 4. Bxd7+ {[%clk 0:02:51]}  Nxd7 {[%clk 0:02:58]} 5. c4 {[%clk 0:02:47]}  Ne5 {[%clk 0:02:57]} 6. d3 {[%clk 0:02:37]}  e6 {[%clk 0:02:57]} 7. Nc3 {[%clk 0:02:36]}  Ne7 {[%clk 0:02:55]} 8. Be3 {[%clk 0:02:30]}  N7c6 {[%clk 0:02:53]} 9. O-O {[%clk 0:02:30]}  Nxf3+ {[%clk 0:02:52]} 10. Qxf3 {[%clk 0:02:29]}  g6 {[%clk 0:02:53]} 11. Qh3 {[%clk 0:02:12]}  Bg7 {[%clk 0:02:52]} 12. Bh6 {[%clk 0:02:05]}  O-O {[%clk 0:02:52]} 13. Rad1 {[%clk 0:02:03]}  Nd4 {[%clk 0:02:45]} 14. Bxg7 {[%clk 0:01:59]}  Kxg7 {[%clk 0:02:46]} 15. Qe3 {[%clk 0:01:59]}  Qb6 {[%clk 0:02:37]} 16. Qd2 {[%clk 0:01:56]}  Rae8 {[%clk 0:02:34]} 17. Ne2 {[%clk 0:01:55]}  Nc6 {[%clk 0:02:32]} 18. d4 {[%clk 0:01:53]}  e5 {[%clk 0:02:19]} 19. dxe5 {[%clk 0:01:40]}  dxe5 {[%clk 0:02:18]} 20. Nc3 {[%clk 0:01:38]}  Nd4 {[%clk 0:02:18]} 21. Nd5 {[%clk 0:01:38]}  Qd6 {[%clk 0:02:16]} 22. Rde1 {[%clk 0:01:24]}  f5 {[%clk 0:02:07]} 23. exf5 {[%clk 0:01:17]}  gxf5 {[%clk 0:02:07]} 24. Qg5+ {[%clk 0:01:12]}  Kh8 {[%clk 0:02:06]} 25. Qh5 {[%clk 0:01:06]}  e4 {[%clk 0:01:53]} 26. f3 {[%clk 0:00:53]}  Re6 {[%clk 0:01:29]} 27. fxe4 {[%clk 0:00:28]}  Rh6 {[%clk 0:01:29]} 28. e5 {[%clk 0:00:28]}  Qa6 {[%clk 0:01:30]} 29. Qg5 {[%clk 0:00:21]}  Rg6 {[%clk 0:00:57]} 30. Qh5 {[%clk 0:00:20]}  Rfg8 {[%clk 0:00:49]} 31. Rf2 {[%clk 0:00:12]}  Qxc4 {[%clk 0:00:42]} 32. Ne7 {[%clk 0:00:11]}  Rg5 {[%clk 0:00:42]} 33. Qh4 {[%clk 0:00:08]}  Nf3+ {[%clk 0:00:40]} 34. Rxf3 {[%clk 0:00:08]}  Rxg2+ {[%clk 0:00:34]} 35. Kh1 {[%clk 0:00:06]}  Qxh4 {[%clk 0:00:34]} 36. Nxg8 {[%clk 0:00:05]}  Qxh2# {[%clk 0:00:34]} 0-1


[Site "https://www.chess.com"]

[Event "Titled Tuesday Blitz June 13 Early 2023"]
[White "Andreikin, Dmitry"]
[Black "Veiga, Jose Francisco R P Neves"]
[WhiteFideId "4158814"]
[BlackFideId "1930087"]
[WhiteElo "2736"]
[BlackElo "2319"]
[Result "1-0"]
[Round "2"]
[TimeControl "180+2"]
[Date "2023.06.13"]
[WhiteClock "0:01:48"]
[BlackClock "0:00:05"]
[Board "10"]

1. d4 {[%clk 0:02:59]}  Nf6 {[%clk 0:02:43]} 2. c4 {[%clk 0:03:00]}  e6 {[%clk 0:02:43]} 3. Nf3 {[%clk 0:02:59]}  d5 {[%clk 0:02:43]} 4. g3 {[%clk 0:02:59]}  h6 {[%clk 0:02:43]} 5. Bg2 {[%clk 0:02:59]}  Bd6 {[%clk 0:02:43]} 6. O-O {[%clk 0:02:59]}  O-O {[%clk 0:02:43]} 7. Nc3 {[%clk 0:02:59]}  Nc6 {[%clk 0:02:38]} 8. b3 {[%clk 0:02:55]}  dxc4 {[%clk 0:02:35]} 9. bxc4 {[%clk 0:02:55]}  e5 {[%clk 0:02:36]} 10. e3 {[%clk 0:02:52]}  Bg4 {[%clk 0:02:27]} 11. h3 {[%clk 0:02:50]}  Bxf3 {[%clk 0:02:08]} 12. Bxf3 {[%clk 0:02:51]}  exd4 {[%clk 0:02:09]} 13. exd4 {[%clk 0:02:50]}  Qd7 {[%clk 0:02:00]} 14. Kg2 {[%clk 0:02:50]}  Rad8 {[%clk 0:01:59]} 15. Be3 {[%clk 0:02:49]}  Na5 {[%clk 0:01:55]} 16. c5 {[%clk 0:02:48]}  Be7 {[%clk 0:01:54]} 17. Rb1 {[%clk 0:02:48]}  b6 {[%clk 0:01:52]} 18. Qe2 {[%clk 0:02:44]}  Rfe8 {[%clk 0:01:51]} 19. Qa6 {[%clk 0:02:42]}  Nc6 {[%clk 0:01:26]} 20. Rfd1 {[%clk 0:02:36]}  Bf8 {[%clk 0:00:44]} 21. Qa4 {[%clk 0:02:25]}  Na5 {[%clk 0:00:35]} 22. Qxd7 {[%clk 0:02:17]}  Rxd7 {[%clk 0:00:32]} 23. c6 {[%clk 0:02:17]}  Rde7 {[%clk 0:00:22]} 24. Bf4 {[%clk 0:02:15]}  a6 {[%clk 0:00:20]} 25. d5 {[%clk 0:02:09]}  Nc4 {[%clk 0:00:20]} 26. Rd4 {[%clk 0:02:01]}  Ne5 {[%clk 0:00:14]} 27. d6 {[%clk 0:01:58]}  cxd6 {[%clk 0:00:14]} 28. Nd5 {[%clk 0:01:59]}  Nxd5 {[%clk 0:00:13]} 29. Bxd5 {[%clk 0:01:59]}  b5 {[%clk 0:00:13]} 30. a4 {[%clk 0:01:59]}  Rb8 {[%clk 0:00:09]} 31. axb5 {[%clk 0:01:55]}  Rxb5 {[%clk 0:00:08]} 32. Ra1 {[%clk 0:01:54]}  Rb6 {[%clk 0:00:07]} 33. Rda4 {[%clk 0:01:49]}  Nxc6 {[%clk 0:00:05]} 34. Be3 {[%clk 0:01:50]}  Reb7 {[%clk 0:00:02]} 35. Rxa6 {[%clk 0:01:47]}  Rxa6 {[%clk 0:00:02]} 36. Rxa6 {[%clk 0:01:47]}  Nb8 {[%clk 0:00:03]} 37. Bxb7 {[%clk 0:01:47]}  Nxa6 {[%clk 0:00:04]} 38. Bxa6 {[%clk 0:01:48]}  f5 {[%clk 0:00:03]} 39. Bc4+ {[%clk 0:01:47]}  Kh7 {[%clk 0:00:03]} 40. Bd3 {[%clk 0:01:48]}  g6 {[%clk 0:00:04]} 41. Kf3 {[%clk 0:01:47]}  Kg7 {[%clk 0:00:04]} 42. Bd4+ {[%clk 0:01:46]}  Kf7 {[%clk 0:00:05]} 43. Bc4+ {[%clk 0:01:47]}  Ke7 {[%clk 0:00:05]} 44. Bd5 {[%clk 0:01:48]}  h5 {[%clk 0:00:05]} 45. h4 {[%clk 0:01:46]}  Bh6 {[%clk 0:00:05]} 46. Be3 {[%clk 0:01:47]}  Bg7 {[%clk 0:00:05]} 47. Bg5+ {[%clk 0:01:47]}  Kd7 {[%clk 0:00:05]} 48. Bf7 {[%clk 0:01:48]} 1-0


[Site "https://www.chess.com"]

[Event "Titled Tuesday Blitz June 13 Early 2023"]
[White "Lazavik, Denis"]
[Black "Eugene, Floryan"]
[WhiteFideId "13515110"]
[BlackFideId "20694784"]
[WhiteElo "2560"]
[BlackElo "2369"]
[Result "1-0"]
[Round "2"]
[TimeControl "180+2"]
[Date "2023.06.13"]
[WhiteClock "0:00:27"]
[BlackClock "0:00:03"]
[Board "12"]

1. d4 {[%clk 0:02:57]}  f5 {[%clk 0:03:00]} 2. Nf3 {[%clk 0:02:56]}  Nf6 {[%clk 0:02:59]} 3. g3 {[%clk 0:02:56]}  g6 {[%clk 0:02:57]} 4. Bg2 {[%clk 0:02:55]}  Bg7 {[%clk 0:02:58]} 5. O-O {[%clk 0:02:56]}  O-O {[%clk 0:02:58]} 6. c4 {[%clk 0:02:56]}  d6 {[%clk 0:02:58]} 7. Nc3 {[%clk 0:02:57]}  c6 {[%clk 0:02:58]} 8. d5 {[%clk 0:02:54]}  e5 {[%clk 0:02:53]} 9. dxe6 {[%clk 0:02:54]}  Bxe6 {[%clk 0:02:53]} 10. b3 {[%clk 0:02:55]}  Na6 {[%clk 0:02:44]} 11. Ng5 {[%clk 0:02:53]}  Qe7 {[%clk 0:02:33]} 12. Nxe6 {[%clk 0:02:52]}  Qxe6 {[%clk 0:02:34]} 13. Bb2 {[%clk 0:02:53]}  Nc5 {[%clk 0:02:32]} 14. e3 {[%clk 0:02:50]}  a5 {[%clk 0:02:29]} 15. Qc2 {[%clk 0:02:49]}  a4 {[%clk 0:01:59]} 16. Rad1 {[%clk 0:02:40]}  Rfd8 {[%clk 0:01:51]} 17. Ne2 {[%clk 0:02:21]}  axb3 {[%clk 0:01:45]} 18. axb3 {[%clk 0:02:20]}  Ra2 {[%clk 0:01:41]} 19. Qb1 {[%clk 0:02:11]}  Rda8 {[%clk 0:01:35]} 20. Nc1 {[%clk 0:02:07]}  Rxb2 {[%clk 0:01:33]} 21. Qxb2 {[%clk 0:02:04]}  Nfe4 {[%clk 0:01:32]} 22. Qc2 {[%clk 0:02:01]}  Ra3 {[%clk 0:01:18]} 23. f3 {[%clk 0:01:22]}  Nc3 {[%clk 0:01:12]} 24. Rde1 {[%clk 0:01:21]}  b5 {[%clk 0:00:52]} 25. cxb5 {[%clk 0:01:19]}  cxb5 {[%clk 0:00:48]} 26. Kh1 {[%clk 0:01:14]}  b4 {[%clk 0:00:45]} 27. e4 {[%clk 0:00:59]}  fxe4 {[%clk 0:00:32]} 28. fxe4 {[%clk 0:01:00]}  Nxb3 {[%clk 0:00:31]} 29. Nxb3 {[%clk 0:01:00]}  Qxb3 {[%clk 0:00:31]} 30. Qd3 {[%clk 0:01:00]}  Be5 {[%clk 0:00:25]} 31. Qf3 {[%clk 0:00:55]}  Ra8 {[%clk 0:00:23]} 32. Ra1 {[%clk 0:00:53]}  Re8 {[%clk 0:00:17]} 33. Ra7 {[%clk 0:00:53]}  Qe6 {[%clk 0:00:16]} 34. Rf7 {[%clk 0:00:45]}  Bg7 {[%clk 0:00:12]} 35. Qe3 {[%clk 0:00:38]}  Nb5 {[%clk 0:00:12]} 36. Qb6 {[%clk 0:00:34]}  Nc3 {[%clk 0:00:08]} 37. Qb7 {[%clk 0:00:32]}  Qe5 {[%clk 0:00:06]} 38. Qd7 {[%clk 0:00:28]}  Ne2 {[%clk 0:00:05]} 39. Rxg7+ {[%clk 0:00:27]}  Qxg7 {[%clk 0:00:04]} 40. Qxe8+ {[%clk 0:00:27]}  Qf8 {[%clk 0:00:03]} 41. Qxf8# {[%clk 0:00:27]} 1-0


[Site "https://www.chess.com"]

[Event "Titled Tuesday Blitz June 13 Early 2023"]
[White "Deac, Bogdan-Daniel"]
[Black "Agibileg, Uurtsaikh"]
[WhiteFideId "1226380"]
[BlackFideId "4901606"]
[WhiteElo "2644"]
[BlackElo "2353"]
[Result "1-0"]
[Round "2"]
[TimeControl "180+2"]
[Date "2023.06.13"]
[WhiteClock "0:00:45"]
[BlackClock "0:00:47"]
[Board "14"]

1. b3 {[%clk 0:03:00]}  e5 {[%clk 0:02:57]} 2. Bb2 {[%clk 0:03:00]}  d6 {[%clk 0:02:57]} 3. e3 {[%clk 0:02:58]}  Nf6 {[%clk 0:02:56]} 4. Ne2 {[%clk 0:02:58]}  Be7 {[%clk 0:02:56]} 5. f4 {[%clk 0:02:59]}  O-O {[%clk 0:02:51]} 6. fxe5 {[%clk 0:02:56]}  dxe5 {[%clk 0:02:51]} 7. Ng3 {[%clk 0:02:56]}  Nfd7 {[%clk 0:02:02]} 8. Bc4 {[%clk 0:02:43]}  Bh4 {[%clk 0:02:01]} 9. O-O {[%clk 0:02:41]}  Bxg3 {[%clk 0:01:59]} 10. hxg3 {[%clk 0:02:42]}  Qg5 {[%clk 0:01:59]} 11. Qf3 {[%clk 0:02:39]}  Nf6 {[%clk 0:01:59]} 12. Nc3 {[%clk 0:02:32]}  Qg6 {[%clk 0:01:51]} 13. Ba3 {[%clk 0:01:39]}  Bg4 {[%clk 0:01:48]} 14. Qxb7 {[%clk 0:01:34]}  Nbd7 {[%clk 0:01:48]} 15. Bxf8 {[%clk 0:01:32]}  Rxf8 {[%clk 0:01:49]} 16. Nd5 {[%clk 0:01:33]}  Nxd5 {[%clk 0:01:42]} 17. Qxd5 {[%clk 0:01:30]}  Be6 {[%clk 0:01:30]} 18. Qc6 {[%clk 0:01:28]}  Nb8 {[%clk 0:01:19]} 19. Qxc7 {[%clk 0:01:24]}  Bxc4 {[%clk 0:01:18]} 20. Qxc4 {[%clk 0:00:55]}  Qxg3 {[%clk 0:01:19]} 21. Rxf7 {[%clk 0:00:45]}  Rxf7 {[%clk 0:00:47]} 22. Rf1 {[%clk 0:00:45]} 1-0


[Site "https://www.chess.com"]

[Event "Titled Tuesday Blitz June 13 Early 2023"]
[White "Arabidze, Meri"]
[Black "Shimanov, Aleksandr"]
[WhiteFideId "13604040"]
[BlackFideId "4198603"]
[WhiteElo "2405"]
[BlackElo "2631"]
[Result "1/2-1/2"]
[Round "2"]
[TimeControl "180+2"]
[Date "2023.06.13"]
[WhiteClock "0:00:10"]
[BlackClock "0:00:06"]
[Board "15"]

1. d4 {[%clk 0:03:00]}  Nf6 {[%clk 0:02:55]} 2. c4 {[%clk 0:03:01]}  d6 {[%clk 0:02:54]} 3. Nf3 {[%clk 0:03:01]}  g6 {[%clk 0:02:50]} 4. g3 {[%clk 0:03:02]}  Bg7 {[%clk 0:02:49]} 5. Bg2 {[%clk 0:03:02]}  O-O {[%clk 0:02:49]} 6. O-O {[%clk 0:03:03]}  Nc6 {[%clk 0:02:49]} 7. Nc3 {[%clk 0:03:04]}  e5 {[%clk 0:02:49]} 8. dxe5 {[%clk 0:03:03]}  dxe5 {[%clk 0:02:49]} 9. Bg5 {[%clk 0:03:03]}  h6 {[%clk 0:02:49]} 10. Qxd8 {[%clk 0:03:02]}  Rxd8 {[%clk 0:02:49]} 11. Bxf6 {[%clk 0:03:02]}  Bxf6 {[%clk 0:02:50]} 12. Nd5 {[%clk 0:03:03]}  Bg7 {[%clk 0:02:50]} 13. Nxc7 {[%clk 0:03:03]}  Rb8 {[%clk 0:02:50]} 14. e4 {[%clk 0:03:03]}  Bg4 {[%clk 0:02:12]} 15. Nd5 {[%clk 0:03:03]}  Bxf3 {[%clk 0:01:36]} 16. Bxf3 {[%clk 0:03:04]}  Nd4 {[%clk 0:01:36]} 17. Bg4 {[%clk 0:02:58]}  h5 {[%clk 0:01:35]} 18. Bh3 {[%clk 0:02:56]}  Nf3+ {[%clk 0:01:34]} 19. Kg2 {[%clk 0:02:51]}  Nd2 {[%clk 0:01:35]} 20. Rfe1 {[%clk 0:02:42]}  Nxc4 {[%clk 0:01:34]} 21. b3 {[%clk 0:02:36]}  Nd6 {[%clk 0:01:32]} 22. Rac1 {[%clk 0:02:35]}  Kf8 {[%clk 0:01:27]} 23. f3 {[%clk 0:02:30]}  Nb5 {[%clk 0:01:22]} 24. Rc4 {[%clk 0:02:25]}  Bh6 {[%clk 0:01:16]} 25. f4 {[%clk 0:02:16]}  exf4 {[%clk 0:01:15]} 26. gxf4 {[%clk 0:02:16]}  Nd6 {[%clk 0:01:15]} 27. Rc7 {[%clk 0:01:58]}  Ne8 {[%clk 0:01:05]} 28. Rc2 {[%clk 0:01:51]}  Rd6 {[%clk 0:01:02]} 29. f5 {[%clk 0:01:42]}  g5 {[%clk 0:00:59]} 30. Kf1 {[%clk 0:01:38]}  g4 {[%clk 0:00:59]} 31. Bg2 {[%clk 0:01:38]}  Nf6 {[%clk 0:00:52]} 32. Nxf6 {[%clk 0:01:32]}  Rxf6 {[%clk 0:00:53]} 33. Rd1 {[%clk 0:01:32]}  Bf4 {[%clk 0:00:52]} 34. Kg1 {[%clk 0:01:20]}  Rd6 {[%clk 0:00:51]} 35. Rxd6 {[%clk 0:01:02]}  Bxd6 {[%clk 0:00:52]} 36. Bf1 {[%clk 0:01:02]}  Ke7 {[%clk 0:00:50]} 37. Bc4 {[%clk 0:01:01]}  h4 {[%clk 0:00:45]} 38. Bd5 {[%clk 0:00:53]}  b6 {[%clk 0:00:43]} 39. f6+ {[%clk 0:00:53]}  Kxf6 {[%clk 0:00:40]} 40. Rf2+ {[%clk 0:00:53]}  Ke5 {[%clk 0:00:36]} 41. Rxf7 {[%clk 0:00:54]}  h3 {[%clk 0:00:32]} 42. Rf5+ {[%clk 0:00:47]}  Kd4 {[%clk 0:00:32]} 43. Rg5 {[%clk 0:00:45]}  Rf8 {[%clk 0:00:31]} 44. Rxg4 {[%clk 0:00:44]}  Bc5 {[%clk 0:00:31]} 45. b4 {[%clk 0:00:38]}  Bxb4 {[%clk 0:00:27]} 46. Rg3 {[%clk 0:00:33]}  Rh8 {[%clk 0:00:21]} 47. Kf2 {[%clk 0:00:33]}  Bd6 {[%clk 0:00:19]} 48. Rg8 {[%clk 0:00:19]}  Rh6 {[%clk 0:00:15]} 49. Rd8 {[%clk 0:00:14]}  Bxh2 {[%clk 0:00:12]} 50. Be6+ {[%clk 0:00:13]}  Kxe4 {[%clk 0:00:10]} 51. Bc8 {[%clk 0:00:04]}  Bd6 {[%clk 0:00:06]} 52. Bb7+ {[%clk 0:00:04]}  Ke5 {[%clk 0:00:04]} 53. Re8+ {[%clk 0:00:04]}  Kf6 {[%clk 0:00:03]} 54. Bc8 {[%clk 0:00:05]}  h2 {[%clk 0:00:01]} 55. Re6+ {[%clk 0:00:05]}  Kg7 {[%clk 0:00:02]} 56. Rxh6 {[%clk 0:00:06]}  Kxh6 {[%clk 0:00:03]} 57. Kg2 {[%clk 0:00:07]}  Kg5 {[%clk 0:00:04]} 58. Be6 {[%clk 0:00:07]}  Be5 {[%clk 0:00:04]} 59. Bd5 {[%clk 0:00:07]}  Kf6 {[%clk 0:00:04]} 60. a4 {[%clk 0:00:07]}  Ke7 {[%clk 0:00:05]} 61. Bc6 {[%clk 0:00:07]}  Kd6 {[%clk 0:00:05]} 62. Bb5 {[%clk 0:00:08]}  Kc5 {[%clk 0:00:06]} 63. Be8 {[%clk 0:00:08]}  Kb4 {[%clk 0:00:06]} 64. Bc6 {[%clk 0:00:08]}  Bd6 {[%clk 0:00:06]} 65. Bd7 {[%clk 0:00:08]}  Ka5 {[%clk 0:00:07]} 66. Be8 {[%clk 0:00:08]}  Bc7 {[%clk 0:00:07]} 67. Bd7 {[%clk 0:00:08]}  Bb8 {[%clk 0:00:08]} 68. Be8 {[%clk 0:00:08]}  Be5 {[%clk 0:00:09]} 69. Bd7 {[%clk 0:00:09]}  Bf4 {[%clk 0:00:10]} 70. Be8 {[%clk 0:00:09]}  Bb8 {[%clk 0:00:11]} 71. Bd7 {[%clk 0:00:09]}  Bg3 {[%clk 0:00:12]} 72. Be8 {[%clk 0:00:09]}  Kb4 {[%clk 0:00:13]} 73. Bd7 {[%clk 0:00:10]}  Kc5 {[%clk 0:00:14]} 74. Be8 {[%clk 0:00:10]}  Kd4 {[%clk 0:00:15]} 75. Bd7 {[%clk 0:00:10]}  Kc3 {[%clk 0:00:16]} 76. Kh1 {[%clk 0:00:09]}  Kb2 {[%clk 0:00:16]} 77. Be8 {[%clk 0:00:09]}  Ka3 {[%clk 0:00:17]} 78. Bd7 {[%clk 0:00:10]}  a6 {[%clk 0:00:18]} 79. Be8 {[%clk 0:00:10]}  Kb4 {[%clk 0:00:18]} 80. Bd7 {[%clk 0:00:10]}  Kc5 {[%clk 0:00:18]} 81. Be8 {[%clk 0:00:10]}  Kd6 {[%clk 0:00:19]} 82. Kg2 {[%clk 0:00:10]}  Kc7 {[%clk 0:00:19]} 83. Kh1 {[%clk 0:00:10]}  Kd8 {[%clk 0:00:19]} 84. Bc6 {[%clk 0:00:10]}  Kc8 {[%clk 0:00:19]} 85. Kg2 {[%clk 0:00:10]}  Bf4 {[%clk 0:00:18]} 86. Kh1 {[%clk 0:00:09]}  Kc7 {[%clk 0:00:18]} 87. Be8 {[%clk 0:00:09]}  Kd6 {[%clk 0:00:17]} 88. Kg2 {[%clk 0:00:09]}  Kc5 {[%clk 0:00:17]} 89. Bd7 {[%clk 0:00:09]}  Bc7 {[%clk 0:00:15]} 90. Be8 {[%clk 0:00:09]}  Bd8 {[%clk 0:00:05]} 91. Bd7 {[%clk 0:00:09]}  Kd6 {[%clk 0:00:04]} 92. Be8 {[%clk 0:00:09]}  Ke7 {[%clk 0:00:05]} 93. Bc6 {[%clk 0:00:09]}  Kf8 {[%clk 0:00:05]} 94. Kxh2 {[%clk 0:00:09]}  Kg7 {[%clk 0:00:06]} 95. Kg2 {[%clk 0:00:09]}  Kh6 {[%clk 0:00:07]} 96. Kf3 {[%clk 0:00:09]}  Kg5 {[%clk 0:00:08]} 97. Ke4 {[%clk 0:00:10]}  Be7 {[%clk 0:00:07]} 98. Kd3 {[%clk 0:00:10]}  a5 {[%clk 0:00:06]} 99. Bb5 {[%clk 0:00:10]}  Bc5 {[%clk 0:00:07]} 100. Kc4 {[%clk 0:00:10]}  Kf4 {[%clk 0:00:06]} 1/2-1/2


[Site "https://www.chess.com"]

[Event "Titled Tuesday Blitz June 13 Early 2023"]
[White "Sviridov, Valery"]
[Black "Miranda, Rafael"]
[WhiteFideId "4120680"]
[BlackFideId "130990"]
[WhiteElo "2457"]
[BlackElo "2204"]
[Result "1-0"]
[Round "2"]
[TimeControl "180+2"]
[Date "2023.06.13"]
[WhiteClock "0:01:46"]
[BlackClock "0:00:48"]
[Board "16"]

1. d4 {[%clk 0:03:00]}  Nf6 {[%clk 0:02:57]} 2. Nf3 {[%clk 0:03:01]}  d5 {[%clk 0:02:57]} 3. c4 {[%clk 0:03:00]}  e6 {[%clk 0:02:57]} 4. g3 {[%clk 0:03:01]}  Be7 {[%clk 0:02:57]} 5. Bg2 {[%clk 0:03:01]}  O-O {[%clk 0:02:58]} 6. O-O {[%clk 0:03:02]}  c6 {[%clk 0:02:58]} 7. Qc2 {[%clk 0:03:02]}  b6 {[%clk 0:02:59]} 8. Rd1 {[%clk 0:03:02]}  Bb7 {[%clk 0:02:59]} 9. b3 {[%clk 0:03:03]}  Nbd7 {[%clk 0:02:58]} 10. Nc3 {[%clk 0:03:04]}  Qc8 {[%clk 0:02:59]} 11. Bb2 {[%clk 0:03:00]}  c5 {[%clk 0:02:58]} 12. cxd5 {[%clk 0:02:59]}  Nxd5 {[%clk 0:02:49]} 13. Nxd5 {[%clk 0:02:58]}  Bxd5 {[%clk 0:02:50]} 14. e4 {[%clk 0:02:58]}  Bb7 {[%clk 0:02:50]} 15. d5 {[%clk 0:02:57]}  exd5 {[%clk 0:02:44]} 16. exd5 {[%clk 0:02:57]}  Bf6 {[%clk 0:02:40]} 17. h4 {[%clk 0:02:48]}  Bxb2 {[%clk 0:02:39]} 18. Qxb2 {[%clk 0:02:49]}  Nf6 {[%clk 0:02:39]} 19. Ne5 {[%clk 0:02:48]}  Rd8 {[%clk 0:02:37]} 20. Nc6 {[%clk 0:02:44]}  Rd7 {[%clk 0:02:19]} 21. Bh3 {[%clk 0:02:37]}  Bxc6 {[%clk 0:02:19]} 22. dxc6 {[%clk 0:01:53]}  Rxd1+ {[%clk 0:02:04]} 23. Rxd1 {[%clk 0:01:53]}  Qxh3 {[%clk 0:01:59]} 24. c7 {[%clk 0:01:53]}  Nd7 {[%clk 0:01:00]} 25. Qd2 {[%clk 0:01:52]}  Re8 {[%clk 0:01:00]} 26. Qe2 {[%clk 0:01:48]}  Rxe2 {[%clk 0:00:53]} 27. c8=Q+ {[%clk 0:01:47]}  Re8 {[%clk 0:00:52]} 28. Qxe8+ {[%clk 0:01:46]}  Nf8 {[%clk 0:00:48]} 29. Rd8 {[%clk 0:01:46]} 1-0


[Site "https://www.chess.com"]

[Event "Titled Tuesday Blitz June 13 Early 2023"]
[White "Ivanchuk, Vasyl"]
[Black "Belov, Alexei"]
[WhiteFideId "14100010"]
[BlackFideId "4128206"]
[WhiteElo "2710"]
[BlackElo "2635"]
[Result "1-0"]
[Round "2"]
[TimeControl "180+2"]
[Date "2023.06.13"]
[WhiteClock "0:00:20"]
[BlackClock "0:00:00"]
[Board "17"]

1. d4 {[%clk 0:02:52]}  e6 {[%clk 0:02:59]} 2. Nf3 {[%clk 0:02:52]}  d5 {[%clk 0:02:59]} 3. c4 {[%clk 0:02:52]}  Nf6 {[%clk 0:02:59]} 4. e3 {[%clk 0:02:52]}  Be7 {[%clk 0:02:59]} 5. b3 {[%clk 0:02:52]}  O-O {[%clk 0:02:58]} 6. Bb2 {[%clk 0:02:52]}  Nbd7 {[%clk 0:02:58]} 7. Nbd2 {[%clk 0:02:52]}  c5 {[%clk 0:02:58]} 8. cxd5 {[%clk 0:02:47]}  Nxd5 {[%clk 0:02:57]} 9. Bc4 {[%clk 0:02:47]}  N7b6 {[%clk 0:02:49]} 10. Be2 {[%clk 0:02:44]}  Bd7 {[%clk 0:02:43]} 11. dxc5 {[%clk 0:02:43]}  Bxc5 {[%clk 0:02:43]} 12. O-O {[%clk 0:02:42]}  f6 {[%clk 0:02:38]} 13. Rc1 {[%clk 0:02:31]}  Qe7 {[%clk 0:02:37]} 14. Ne4 {[%clk 0:02:28]}  Bb4 {[%clk 0:02:28]} 15. Qc2 {[%clk 0:02:23]}  Rac8 {[%clk 0:02:25]} 16. Qb1 {[%clk 0:02:23]}  e5 {[%clk 0:02:18]} 17. Rxc8 {[%clk 0:02:15]}  Rxc8 {[%clk 0:02:17]} 18. Rc1 {[%clk 0:02:15]}  Rxc1+ {[%clk 0:02:10]} 19. Qxc1 {[%clk 0:02:15]}  Be6 {[%clk 0:01:59]} 20. a3 {[%clk 0:02:14]}  Bd6 {[%clk 0:01:55]} 21. Nxd6 {[%clk 0:02:13]}  Qxd6 {[%clk 0:01:55]} 22. Nd2 {[%clk 0:02:14]}  Qc7 {[%clk 0:01:46]} 23. Qxc7 {[%clk 0:02:10]}  Nxc7 {[%clk 0:01:46]} 24. f3 {[%clk 0:02:05]}  Kf7 {[%clk 0:01:43]} 25. Kf2 {[%clk 0:02:05]}  Ke7 {[%clk 0:01:41]} 26. a4 {[%clk 0:02:00]}  Nbd5 {[%clk 0:01:30]} 27. Ba3+ {[%clk 0:01:59]}  Kd7 {[%clk 0:01:29]} 28. e4 {[%clk 0:01:51]}  Nc3 {[%clk 0:01:14]} 29. Bd3 {[%clk 0:01:42]}  a5 {[%clk 0:01:05]} 30. Ke1 {[%clk 0:01:29]}  b5 {[%clk 0:01:02]} 31. Bb2 {[%clk 0:01:29]}  b4 {[%clk 0:00:54]} 32. Nc4 {[%clk 0:01:23]}  Bxc4 {[%clk 0:00:39]} 33. Bxc4 {[%clk 0:01:23]}  Na2 {[%clk 0:00:28]} 34. Kd2 {[%clk 0:01:17]}  Ne6 {[%clk 0:00:27]} 35. g3 {[%clk 0:01:08]}  Kd6 {[%clk 0:00:19]} 36. Ke3 {[%clk 0:01:05]}  Nc5 {[%clk 0:00:17]} 37. h4 {[%clk 0:00:58]}  Nc3 {[%clk 0:00:16]} 38. Kd2 {[%clk 0:00:57]}  Na2 {[%clk 0:00:13]} 39. Kc2 {[%clk 0:00:57]}  h6 {[%clk 0:00:10]} 40. Bd5 {[%clk 0:00:42]}  g5 {[%clk 0:00:10]} 41. h5 {[%clk 0:00:38]}  Nd7 {[%clk 0:00:07]} 42. Kd3 {[%clk 0:00:35]}  Nb6 {[%clk 0:00:06]} 43. Bg8 {[%clk 0:00:32]}  Kc5 {[%clk 0:00:07]} 44. f4 {[%clk 0:00:27]}  gxf4 {[%clk 0:00:03]} 45. gxf4 {[%clk 0:00:27]}  Nc3 {[%clk 0:00:04]} 46. fxe5 {[%clk 0:00:20]}  fxe5 {[%clk 0:00:00]} 47. Bc1 {[%clk 0:00:20]} 1-0


[Site "https://www.chess.com"]

[Event "Titled Tuesday Blitz June 13 Early 2023"]
[White "Vlassov, Nikolai"]
[Black "Lenderman, Aleksandr"]
[WhiteFideId "4103360"]
[BlackFideId "2021285"]
[WhiteElo "2324"]
[BlackElo "2607"]
[Result "0-1"]
[Round "2"]
[TimeControl "180+2"]
[Date "2023.06.13"]
[WhiteClock "0:00:00"]
[BlackClock "0:01:23"]
[Board "18"]

1. e4 {[%clk 0:02:59]}  d5 {[%clk 0:02:59]} 2. exd5 {[%clk 0:02:59]}  Nf6 {[%clk 0:02:58]} 3. Bb5+ {[%clk 0:02:58]}  Bd7 {[%clk 0:02:38]} 4. Bc4 {[%clk 0:02:58]}  Bg4 {[%clk 0:02:36]} 5. f3 {[%clk 0:02:58]}  Bf5 {[%clk 0:02:33]} 6. g4 {[%clk 0:02:57]}  Bc8 {[%clk 0:02:32]} 7. Nc3 {[%clk 0:02:57]}  Nbd7 {[%clk 0:02:33]} 8. Qe2 {[%clk 0:02:57]}  Nb6 {[%clk 0:02:32]} 9. Qd3 {[%clk 0:02:57]}  Nxc4 {[%clk 0:02:19]} 10. Qxc4 {[%clk 0:02:57]}  e6 {[%clk 0:02:19]} 11. dxe6 {[%clk 0:02:52]}  Bxe6 {[%clk 0:02:20]} 12. Qa4+ {[%clk 0:02:52]}  Bd7 {[%clk 0:02:19]} 13. Qb3 {[%clk 0:02:51]}  Bc6 {[%clk 0:02:13]} 14. g5 {[%clk 0:02:47]}  Nd5 {[%clk 0:02:06]} 15. d3 {[%clk 0:02:40]}  Bc5 {[%clk 0:02:04]} 16. Ne4 {[%clk 0:02:32]}  Be7 {[%clk 0:02:04]} 17. Ne2 {[%clk 0:02:28]}  O-O {[%clk 0:02:01]} 18. Nd4 {[%clk 0:02:25]}  Qd7 {[%clk 0:01:57]} 19. Nxc6 {[%clk 0:02:22]}  Qxc6 {[%clk 0:01:57]} 20. Bd2 {[%clk 0:02:21]}  a5 {[%clk 0:01:55]} 21. O-O-O {[%clk 0:02:07]}  b5 {[%clk 0:01:48]} 22. c4 {[%clk 0:01:52]}  Rfb8 {[%clk 0:01:40]} 23. Qc2 {[%clk 0:01:43]}  bxc4 {[%clk 0:01:36]} 24. dxc4 {[%clk 0:01:31]}  Nb6 {[%clk 0:01:37]} 25. c5 {[%clk 0:00:47]}  Nd5 {[%clk 0:01:34]} 26. h4 {[%clk 0:00:38]}  a4 {[%clk 0:01:32]} 27. h5 {[%clk 0:00:36]}  Rb5 {[%clk 0:01:30]} 28. g6 {[%clk 0:00:34]}  f5 {[%clk 0:01:29]} 29. gxh7+ {[%clk 0:00:34]}  Kh8 {[%clk 0:01:29]} 30. Nc3 {[%clk 0:00:30]}  Rxc5 {[%clk 0:01:29]} 31. Kb1 {[%clk 0:00:19]}  Bf6 {[%clk 0:01:28]} 32. Rc1 {[%clk 0:00:00]}  Rb8 {[%clk 0:01:23]} 0-1


[Site "https://www.chess.com"]